[Event "58th Akiba Rubinstein D 2022"]
[Site "Polanica-Zdroj"]
[Date "2022.08.20"]
[Round "8.1"]
[White "Gibala, Adam"]
[Black "Jasiulewicz, Dawid"]
[Result "0-1"]
[ECO "B90"]
[WhiteElo "1549"]
[BlackElo "1525"]
[Annotator "NA RC"]
[PlyCount "86"]
[EventDate "2022.08.13"]
[EventCountry "POL"]
[SourceTitle "playchess.com"]
[Source "ChessBase"]
[SourceQuality "1"]
[TimeControl "40/5400+30:1800+30"]

1. e4 {[%emt 0:00:01]} c5 {[%emt 0:00:04]} 2. Nf3 {[%emt 0:00:03]} d6 {[%emt 0:00:05]} 3. d4 {[%emt 0:00:34]} cxd4 {[%emt 0:00:05]} 4. Nxd4 {[%emt 0:00:06]} Nf6 {[%emt 0:00:05]} 5. Nc3 {[%emt 0:00:07]} a6 {[%emt 0:00:04]} 6. Be3 {[%emt 0:01:11]} e5 {[%emt 0:00:08]} 7. Nf3 {[%emt 0:00:13]} Qc7 {[%emt 0:02:26]} 8. Be2 {[%emt 0:03:37]} Be7 {[%emt 0:01:20]} 9. O-O {[%emt 0:00:25]} O-O {[%emt 0:00:17]} 10. a4 {[%emt 0:01:46]} Nc6 {[%emt 0:02:23]} 11. Nd5 {[%emt 0:02:31]} Nxd5 {[%emt 0:01:08]} 12. exd5 {[%emt 0:00:10]} Na5 {[%emt 0:04:41]} 13. Nd2 {[%emt 0:00:23]} f5 {[%emt 0:09:35]} 14. f3 {[%emt 0:00:50]} b6 {[%emt 0:05:35]} 15. b4 {[%emt 0:00:10]} Qc3 {[%emt 0:01:44]} 16. Bxb6 {[%emt 0:00:26]} Qxb4 {[%emt 0:00:35]} 17. Rb1 {[%emt 0:01:42]} Qc3 {[%emt 0:00:28]} 18. Nb3 {[%emt 0:05:28]} Bd8 {[%emt 0:03:29]} 19. Bf2 {[%emt 0:01:48]} Bd7 {[%emt 0:06:21]} 20. Kh1 {[%emt 0:00:46]} Nxb3 {[%emt 0:03:04]} 21. cxb3 {[%emt 0:00:11]} a5 {[%emt 0:02:23]} 22. Rc1 {[%emt 0:00:52]} Qb4 {[%emt 0:00:18]} 23. Be1 {[%emt 0:00:38]} Qb7 {[%emt 0:01:27]} 24. f4 {[%emt 0:00:22]} exf4 {[%emt 0:04:27]} 25. Bc4 {[%emt 0:00:21]} Bb6 {[%emt 0:01:23]} 26. Bd2 {[%emt 0:04:57]} Be3 {[%emt 0:02:23]} 27. Bxe3 {[%emt 0:01:32]} fxe3 {[%emt 0:00:11]} 28. Qd4 {[%emt 0:01:07]} Rae8 {[%emt 0:02:49]} 29. Qf4 {[%emt 0:02:11]} Qb6 {[%emt 0:01:37]} 30. Rce1 {[%emt 0:00:13]} Re4 {[%emt 0:01:12]} 31. Qg5 {[%emt 0:00:43]} Qd4 {[%emt 0:01:33]} 32. Rf3 {[%emt 0:00:54]} Rfe8 {[%emt 0:02:06]} 33. Qg3 {[%emt 0:01:24]} f4 {[%emt 0:03:44]} 34. Qh4 {[%emt 0:00:23]} Bxa4 {[%emt 0:02:23]} 35. g3 {[%emt 0:00:42]} fxg3 {[%emt 0:01:42]} 36. Qxg3 {[%emt 0:00:09]} Qe5 {[%emt 0:04:44]} 37. Qh3 {[%emt 0:03:23]} Qc3 {[%emt 0:02:52]} 38. Rg1 {[%emt 0:00:36]} R4e7 {[%emt 0:03:45]} 39. Qh4 {[%emt 0:03:27]} Bd7 {[%emt 0:00:45]} 40. Rfg3 {[%emt 0:00:38]} Bf5 {[%emt 0:02:03]} 41. Be2 {[%emt 0:31:50]} Be4+ {[%emt 0:31:11]} 42. Bf3 {[%emt 0:00:29]} Bxf3+ {[%emt 0:00:20]} 43. Rxf3 {[%emt 0:00:07]} Qe5 {[%emt 0:00:39]} 0-1

[Event "58th Akiba Rubinstein D 2022"]
[Site "Polanica-Zdroj"]
[Date "2022.08.20"]
[Round "8.2"]
[White "Galuszka, Kamil"]
[Black "Lewandrowski, Tomasz"]
[Result "*"]
[ECO "B20"]
[WhiteElo "1976"]
[BlackElo "1902"]
[Annotator "RC"]
[PlyCount "69"]
[EventDate "2022.08.13"]
[EventCountry "POL"]
[SourceTitle "playchess.com"]
[Source "ChessBase"]
[SourceQuality "1"]
[TimeControl "40/5400+30:1800+30"]

1. e4 {[%emt 0:00:04]} c5 {[%emt 0:00:08]} 2. Qe2 {[%emt 0:00:06]} Nc6 {[%emt 0:00:46]} 3. Nf3 {[%emt 0:01:37]} d6 {[%emt 0:04:04]} 4. g3 {[%emt 0:07:15]} e6 {[%emt 0:03:11]} 5. Bg2 {[%emt 0:00:15]} g6 {[%emt 0:00:19]} 6. O-O {[%emt 0:00:08]} Bg7 {[%emt 0:00:11]} 7. c3 {[%emt 0:00:05]} Nge7 {[%emt 0:00:37]} 8. Na3 {[%emt 0:01:26]} O-O {[%emt 0:00:34]} 9. Nc2 {[%emt 0:00:23]} e5 {[%emt 0:01:31]} 10. d3 {[%emt 0:03:24]} Qc7 {[%emt 0:11:15]} 11. Nfe1 {[%emt 0:09:36]} Rb8 {[%emt 0:07:02]} 12. f4 {[%emt 0:09:27]} b5 {[%emt 0:01:34]} 13. f5 {[%emt 0:07:26]} gxf5 {[%emt 0:00:32]} 14. exf5 {[%emt 0:03:04]} Bxf5 {[%emt 0:02:11]} 15. Rxf5 {[%emt 0:17:46]} Nxf5 {[%emt 0:00:13]} 16. Qh5 {[%emt 0:00:09]} Nfe7 {[%emt 0:02:32]} 17. Nf3 {[%emt 0:00:49]} f6 {[%emt 0:03:44]} 18. Bh3 {[%emt 0:04:26]} Qd8 {[%emt 0:07:34]} 19. Be6+ {[%emt 0:04:22]} Kh8 {[%emt 0:00:00]} 20. Ne3 {[%emt 0:00:14]} Qe8 {[%emt 0:01:18]} 21. Qh3 {[%emt 0:00:01]} Nd8 {[%emt 0:07:10]} 22. Bd7 {[%emt 0:03:53]} Qf7 {[%emt 0:00:36]} 23. Nh4 {[%emt 0:00:41]} Rg8 {[%emt 0:00:53]} 24. Nef5 {[%emt 0:01:04]} Nxf5 {[%emt 0:01:35]} 25. Ng6+ {[%emt 0:00:17]} Qxg6 {[%emt 0:03:28]} 26. Bxf5 {[%emt 0:00:02]} Qxf5 {[%emt 0:02:08]} 27. Qxf5 {[%emt 0:00:01]} Nf7 {[%emt 0:00:23]} 28. a4 {[%emt 0:01:52]} b4 {[%emt 0:02:35]} 29. Qd7 {[%emt 0:02:24]} Rgf8 {[%emt 0:00:45]} 30. cxb4 {[%emt 0:01:20]} Rxb4 {[%emt 0:00:15]} 31. Qxa7 {[%emt 0:00:09]} e4 {[%emt 0:00:15]} 32. dxe4 {[%emt 0:01:27]} Rxe4 {[%emt 0:00:34]} 33. Bf4 {[%emt 0:01:06]} f5 {[%emt 0:01:11]} 34. Ra2 {[%emt 0:01:26]} Re2 {[%emt 0:00:33]} 35. Qb7 {[%emt 0:00:24]} *

[Event "58th Akiba Rubinstein D 2022"]
[Site "Polanica-Zdroj"]
[Date "2022.08.20"]
[Round "8.3"]
[White "Kraczek, Cezary"]
[Black "Zerebiec, Maurycy"]
[Result "*"]
[ECO "A04"]
[WhiteElo "1657"]
[BlackElo "1915"]
[Annotator "TA"]
[PlyCount "72"]
[EventDate "2022.08.13"]
[EventCountry "POL"]
[SourceTitle "playchess.com"]
[Source "ChessBase"]
[SourceQuality "1"]
[TimeControl "40/5400+30:1800+30"]

{[%evp 17,72,-25,-8,-56,-34,-57,-31,-38,-50,-107,-67,-74,-79,-104,8,-70,16,23,28,25,34,0,66,77,160,164,221,247,275,270,386,387,393,393,387,386,386,372,372,328,327,326,322,311,338,338,331,323,324,320,306,293,395,309,297,244,229]} 1. Nf3 {[%emt 0:00:02]} c5 {[%emt 0:05:41]} 2. g3 {[%emt 0:00:09]} Nc6 {[%emt 0:00:04]} 3. Bg2 {[%emt 0:00:05]} e5 {[%emt 0:00:04]} 4. d3 {[%emt 0:03:01]} g6 {[%emt 0:00:02]} 5. e4 {[%emt 0:00:59]} Bg7 {[%emt 0:00:07]} 6. O-O {[%emt 0:01:08]} Nge7 {[%emt 0:00:05]} 7. Nbd2 {[%emt 0:09:02]} O-O {[%emt 0:02:04]} 8. Re1 {[%emt 0:02:37]} d6 {[%emt 0:00:17]} 9. c3 {[%emt 0:02:49]} h6 {[%emt 0:00:26]} 10. Nf1 {[%emt 0:05:33] A04: Unusual lines after 1 Nf3 and King's Indian Attack.} (10. a3 $11) 10... Be6 $15 {[%emt 0:06:23]} 11. Be3 {[%emt 0:17:53]} f5 {[%emt 0:02:30]} 12. exf5 {[%emt 0:02:25] Black is slightly better.} Nxf5 {[%emt 0:00:45] [#]} 13. Qd2 $146 {[%emt 0:02:57]} (13. a3 $15) ({Predecessor:} 13. Bc1 Qd7 14. Ne3 Nfe7 15. c4 Rf7 16. Rf1 Raf8 17. Rb1 Bh3 18. Ne1 Bxg2 19. N3xg2 {½-½ (50) Wealer,C (1712)-Filipovic,S (2226) Luxembourg 2013}) 13... Qf6 {[%emt 0:02:07]} 14. Rad1 {[%emt 0:07:42]} Rae8 {[%emt 0:00:25]} 15. b4 {[%emt 0:04:56]} g5 {[%emt 0:08:51]} ({Black should play} 15... cxb4 $17 16. cxb4 Nce7) 16. h3 {[%emt 0:05:32]} (16. bxc5 $11 d5 17. g4 Nxe3 18. Nxe3) 16... Qe7 {[%emt 0:08:48]} (16... cxb4 $15 17. cxb4 Bd5) 17. bxc5 $11 {[%emt 0:03:40]} dxc5 {[%emt 0:00:53]} 18. g4 {[%emt 0:01:16]} Nxe3 {[%emt 0:00:39]} 19. Qxe3 {[%emt 0:01:44]} Rf4 {[%emt 0:07:03]} (19... Qd6 $1 $11) 20. Ng3 $14 {[%emt 0:02:31] White now steadily converts the win.} Ref8 {[%emt 0:02:11]} (20... e4 $142 21. dxe4 Na5) 21. Nh5 $16 {[%emt 0:01:49]} R4f7 {[%emt 0:00:19]} (21... Bd5 $142) 22. Nxg7 $18 {[%emt 0:04:14]} Kxg7 {[%emt 0:00:25]} 23. Nxe5 {[%emt 0:01:23]} Rxf2 {[%emt 0:03:08]} (23... Rf6 $142 24. h4 (24. Nxc6 bxc6 25. Qe5 Qd8 $16) 24... Rxf2 25. Nxc6 Rxg2+ 26. Kxg2 Bd5+ 27. Kg1 Qxe3+ 28. Rxe3 Bxc6 29. hxg5 hxg5) 24. Nxc6 {[%emt 0:01:31] The board is on fire.} Rxg2+ {[%emt 0:02:32]} 25. Kxg2 {[%emt 0:00:28]} Bd5+ {[%emt 0:00:06]} 26. Kg1 {[%emt 0:00:47]} Qxe3+ {[%emt 0:00:09]} 27. Rxe3 {[%emt 0:00:07]} Bxc6 {[%emt 0:00:10][%mdl 4096] Endgame KRR-KRB} 28. d4 {[%emt 0:01:21]} cxd4 {[%emt 0:01:04]} 29. cxd4 {[%emt 0:00:19]} ({But not} 29. Rxd4 Rf6 30. Re7+ Kf8) 29... Rd8 {[%emt 0:00:06]} 30. Re5 {[%emt 0:02:01]} Bd5 {[%emt 0:00:17]} 31. a4 {[%emt 0:01:09]} Rd7 {[%emt 0:00:30]} 32. Rde1 {[%emt 0:01:09]} Kf6 {[%emt 0:03:15]} 33. Rf1+ {[%emt 0:00:41]} Kg6 {[%emt 0:00:02]} 34. a5 {[%emt 0:02:20]} b5 {[%emt 0:01:51]} 35. axb6 {[%emt 0:00:37]} axb6 {[%emt 0:00:00]} 36. Rb1 {[%emt 0:01:17]} Rd6 {[%emt 0:00:02] Weighted Error Value: White=0.18 (very precise) /Black=0.39} *

[Event "58th Akiba Rubinstein D 2022"]
[Site "Polanica-Zdroj"]
[Date "2022.08.20"]
[Round "8.4"]
[White "Meizlin, Yaacov"]
[Black "Stepinski, Piotr"]
[Result "*"]
[ECO "A15"]
[WhiteElo "1938"]
[BlackElo "1568"]
[Annotator "TA"]
[PlyCount "43"]
[EventDate "2022.08.13"]
[EventCountry "POL"]
[SourceTitle "playchess.com"]
[Source "ChessBase"]
[SourceQuality "1"]
[TimeControl "40/5400+30:1800+30"]

{[%evp 17,43,15,25,1,52,6,21,22,18,6,88,56,60,53,100,0,0,0,0,0,0,0,0,0,0,0,-8,0]} 1. c4 {[%emt 0:00:20]} Nf6 {[%emt 0:00:06]} 2. g3 {[%emt 0:00:10]} g6 {[%emt 0:00:05]} 3. Bg2 {[%emt 0:00:08]} Bg7 {[%emt 0:00:01]} 4. Nc3 {[%emt 0:00:08]} d6 {[%emt 0:00:04]} 5. Nf3 {[%emt 0:00:35]} e5 {[%emt 0:00:11]} 6. d4 {[%emt 0:00:35]} exd4 {[%emt 0:02:26]} 7. Nxd4 {[%emt 0:00:27]} O-O {[%emt 0:00:29]} 8. O-O {[%emt 0:00:22]} Nbd7 {[%emt 0:04:33]} 9. h3 {[%emt 0:04:21]} Nb6 {[%emt 0:04:30]} 10. b3 {[%emt 0:09:38] E67: King's Indian: Fianchetto: 6...Nbd7.} Re8 {[%emt 0:10:42] [#]} (10... d5 $11) 11. Bg5 $146 {[%emt 0:12:10]} (11. e4 $14 {might be stronger.}) ({Predecessor:} 11. e4 c5 12. Nc2 a6 13. Rb1 Be6 14. Ne3 Nfd7 15. Ncd5 Bxd5 16. Nxd5 Nxd5 17. Qxd5 Qc7 18. Bf4 Re6 19. Rbd1 {0-1 (39) Khalifman,A (2612)-Topalov,V (2813) Zuerich 2009}) 11... h6 $11 {[%emt 0:00:32]} 12. Be3 {[%emt 0:00:29]} c6 {[%emt 0:14:35][%cal Oe8e3]} 13. Qd2 {[%emt 0:07:12]} d5 {[%emt 0:02:43]} (13... Kh7 $11) 14. cxd5 {[%emt 0:03:44] White is more active.} (14. Bxh6 {with more complications.} dxc4 15. Rad1 Bxh6 16. Qxh6 Qe7 17. e4) 14... Nbxd5 {[%emt 0:00:07]} 15. Nxd5 {[%emt 0:00:57]} cxd5 {[%emt 0:00:32]} (15... Nxd5 $14 16. Bxh6 Nc3) 16. Rac1 {[%emt 0:15:45]} (16. Bxh6 $16 Ne4 17. Bxe4 dxe4 18. Bxg7 Kxg7 19. g4) 16... Ne4 {[%emt 0:10:59] The position is equal.} 17. Qd3 {[%emt 0:00:25]} Bd7 {[%emt 0:01:18]} 18. Rfd1 {[%emt 0:06:42][%cal Bf1d1,Bd1c1,Bc1c7][%mdl 32]} a6 {[%emt 0:08:50]} 19. a4 {[%emt 0:05:40]} Qe7 {[%emt 0:01:25]} 20. Rc7 {[%emt 0:13:32]} Rac8 {[%emt 0:07:10]} 21. Rdc1 {[%emt 0:03:22]} Rxc7 {[%emt 0:02:35]} 22. Rxc7 {[%emt 0:00:01] Weighted Error Value: White=0.21 (precise) /Black=0.23 (precise)} *

[Event "58th Akiba Rubinstein D 2022"]
[Site "Polanica-Zdroj"]
[Date "2022.08.20"]
[Round "8.5"]
[White "Wilgosz, Jan"]
[Black "Liskiewicz, Jakub"]
[Result "0-1"]
[ECO "B09"]
[WhiteElo "1597"]
[BlackElo "1910"]
[Annotator "TA"]
[PlyCount "37"]
[EventDate "2022.08.13"]
[EventCountry "POL"]
[SourceTitle "playchess.com"]
[Source "ChessBase"]
[SourceQuality "1"]
[TimeControl "40/5400+30:1800+30"]

{[%evp 20,37,-9,-24,48,14,156,159,161,125,114,20,35,-195,-240,-302,-130,-458,-397,-448]} 1. e4 {[%emt 0:06:22][%cal Be2e4,Be4e5][%mdl 32]} d6 {[%emt 0:00:13]} 2. d4 {[%emt 0:00:14]} Nf6 {[%emt 0:00:10]} 3. Nc3 {[%emt 0:00:34]} g6 {[%emt 0:00:11]} 4. f4 {[%emt 0:00:29]} Bg7 {[%emt 0:00:14]} 5. Nf3 {[%emt 0:00:45]} O-O {[%emt 0:00:16]} 6. e5 {[%emt 0:01:09]} Nfd7 {[%emt 0:00:11]} 7. h4 {[%emt 0:01:26]} c5 {[%emt 0:02:51][%cal Bc7c5,Bc5d4,Bd4c3][%mdl 32]} 8. h5 {[%emt 0:01:06]} cxd4 {[%emt 0:00:10]} 9. hxg6 {[%emt 0:03:54]} dxc3 {[%emt 0:13:16]} 10. gxf7+ {[%emt 0:01:18]} Rxf7 {[%emt 0:05:54]} 11. Bc4 {[%emt 0:02:43] [#]} Nf8 $1 {[%emt 0:09:10] B09: Pirc Defence: Austrian Attack.} 12. Ng5 {[%emt 0:12:47][%mdl 64] Pin} (12. Qd5 $2 e6 13. Qd4 cxb2 14. Bxb2 Nc6 $19) 12... e6 {[%emt 0:06:34]} 13. Nxf7 $16 {[%emt 0:03:26] White is more active.} Kxf7 {[%emt 0:01:30] White is clearly better.} 14. Qh5+ {[%emt 0:04:24]} (14. bxc3 Kg8 $11) 14... Kg8 {[%emt 0:02:20] [#]} 15. f5 $1 {[%emt 0:03:13] And now f6 would win. The board is on fire.} (15. bxc3 Qc7 16. Bd3 (16. Qe2 $2 d5 $19) 16... Qxc3+ 17. Kf2 h6 $11) 15... Qa5 {[%emt 0:11:30] Hoping for ...cxb2+.} 16. fxe6 $2 {[%emt 0:14:15]} (16. O-O $1 $14 {was forced to keep a grip.} Qc5+ 17. Rf2) 16... cxb2+ $19 {[%emt 0:06:05]} 17. Ke2 {[%emt 0:10:25] White threatens e7+ and mate.} Qc7 {[%emt 0:09:52]} (17... bxa1=Q {is a self mate.} 18. e7+ d5 19. Bxd5+ Qxd5 20. exf8=Q+ Kxf8 21. Ba3+) ({Inferior is} 17... Bxe6 18. Bxe6+ Nxe6 19. Qxh7+ (19. Qe8+ $2 Nf8 $19) 19... Kf8 20. Qf5+ Ke7 21. exd6+ (21. Bg5+ Kd7 $15) 21... Kd7 22. Qxa5 $11) (17... bxc1=N+ $19 18. Raxc1 Qc7) 18. Bb3 $2 {[%emt 0:12:49][%mdl 8192] [#]} (18. Qf7+ $17 Qxf7 19. exf7+ Kh8 20. Bxb2) 18... bxc1=N+ $146 (18... bxa1=Q {[#] gets mated.} 19. Qxh7+ $3 {[%mdl 512]} Nxh7 20. e7+) ({Predecessor:} 18... d5 19. Bxb2 Bxe6 20. Raf1 Nbd7 21. Rf3 Nc5 22. Kd1 Rc8 23. Rc3 Qxe5 24. Qxe5 Bxe5 25. Rxc5 Bg4+ {0-1 (25) Schneider,A-Forgacs,G Hungary 1975}) 19. Raxc1 {[%emt 0:02:37] Weighted Error Value: White=1.00/Black=0.90} 0-1

[Event "58th Akiba Rubinstein D 2022"]
[Site "Polanica-Zdroj"]
[Date "2022.08.20"]
[Round "8.6"]
[White "Mareau, Timothe"]
[Black "Kryzia, Wiktor"]
[Result "*"]
[ECO "B21"]
[WhiteElo "1590"]
[BlackElo "1764"]
[Annotator "NA RC"]
[PlyCount "44"]
[EventDate "2022.08.13"]
[EventCountry "POL"]
[SourceTitle "playchess.com"]
[Source "ChessBase"]
[SourceQuality "1"]
[TimeControl "40/5400+30:1800+30"]

1. e4 {[%emt 0:00:04]} c5 {[%emt 0:00:10]} 2. d4 {[%emt 0:00:06]} cxd4 {[%emt 0:00:27]} 3. c3 {[%emt 0:00:06]} dxc3 {[%emt 0:00:26]} 4. Nxc3 {[%emt 0:00:24]} Nc6 {[%emt 0:00:39]} 5. Nf3 {[%emt 0:00:12]} e6 {[%emt 0:01:31]} 6. Bc4 {[%emt 0:00:10]} a6 {[%emt 0:00:18]} 7. O-O {[%emt 0:00:26]} b5 {[%emt 0:00:20]} 8. Bb3 {[%emt 0:01:31]} Bb7 {[%emt 0:00:35]} 9. Qe2 {[%emt 0:00:49]} Na5 {[%emt 0:01:13]} 10. Bc2 {[%emt 0:01:01]} Rc8 {[%emt 0:01:26]} 11. Rd1 {[%emt 0:01:19]} Nf6 {[%emt 0:04:53]} 12. Bg5 {[%emt 0:03:10]} Be7 {[%emt 0:00:08]} 13. e5 {[%emt 0:02:51]} Nd5 {[%emt 0:06:35]} 14. Ne4 {[%emt 0:00:51]} O-O {[%emt 0:24:03]} 15. Qd3 {[%emt 0:24:26]} g6 16. a3 {[%emt 0:11:31]} Nc4 {[%emt 0:15:19]} 17. Bb3 {[%emt 0:04:36]} Bxg5 {[%emt 0:18:56]} 18. Nfxg5 {[%emt 0:02:12]} Nxe5 {[%emt 0:01:39]} 19. Qg3 {[%emt 0:07:36]} d6 {[%emt 0:06:35]} 20. Qh3 {[%emt 0:01:28]} h5 {[%emt 0:01:41]} 21. Nxe6 {[%emt 0:00:15]} Nf4 {[%emt 0:02:05]} 22. Nxf4 {[%emt 0:01:13]} Bxe4 {[%emt 0:00:02]} *

[Event "58th Akiba Rubinstein D 2022"]
[Site "Polanica-Zdroj"]
[Date "2022.08.20"]
[Round "8.7"]
[White "Marek, Grzegorz"]
[Black "Straszewski, Tomasz"]
[Result "*"]
[ECO "A01"]
[WhiteElo "1478"]
[BlackElo "1716"]
[Annotator "NA RC"]
[PlyCount "76"]
[EventDate "2022.08.13"]
[EventCountry "POL"]
[SourceTitle "playchess.com"]
[Source "ChessBase"]
[SourceQuality "1"]
[TimeControl "40/5400+30:1800+30"]

1. b3 e5 2. Bb2 Nc6 3. e3 Nf6 4. d4 d6 5. dxe5 Nxe5 6. Bxe5 dxe5 7. Qxd8+ Kxd8 8. Bc4 Ke8 9. Nf3 Bd6 10. Nbd2 Bf5 11. O-O-O Ke7 12. Kb2 Ng4 13. Rhf1 f6 14. Be2 c6 15. h3 Nh6 16. Nc4 Bc7 17. Rd2 Nf7 18. Rfd1 b5 19. Nh4 Be6 20. Na3 Nd6 21. Rf1 a5 22. c4 b4 23. Nc2 Ne4 24. Rd3 Nc3 25. Bg4 Rhd8 26. Rxd8 Rxd8 27. Bxe6 Kxe6 28. Nf3 Rd1 29. Re1 Rxe1 30. Nfxe1 Nd1+ 31. Kc1 Nxf2 32. Kd2 Ne4+ 33. Kd3 Nc3 34. a3 e4+ 35. Kd4 Be5+ 36. Kc5 Kd7 37. axb4 Bd6+ 38. Kb6 axb4 *

[Event "58th Akiba Rubinstein D 2022"]
[Site "Polanica-Zdroj"]
[Date "2022.08.20"]
[Round "8.9"]
[White "Markiewicz, Czeslaw"]
[Black "Stachowiak, Bruno"]
[Result "1-0"]
[ECO "B30"]
[WhiteElo "1750"]
[BlackElo "1462"]
[Annotator "NA RC"]
[PlyCount "59"]
[EventDate "2022.08.13"]
[EventCountry "POL"]
[SourceTitle "playchess.com"]
[Source "ChessBase"]
[SourceQuality "1"]
[TimeControl "40/5400+30:1800+30"]

1. e4 {[%emt 0:00:05]} c5 {[%emt 0:00:44]} 2. Nf3 {[%emt 0:00:08]} Nc6 {[%emt 0:00:40]} 3. d3 {[%emt 0:00:10]} g6 {[%emt 0:02:22]} 4. Be2 {[%emt 0:00:10]} Bg7 {[%emt 0:00:09]} 5. O-O {[%emt 0:00:17]} d6 {[%emt 0:02:07]} 6. c3 {[%emt 0:00:35]} e5 {[%emt 0:00:45]} 7. Nbd2 {[%emt 0:02:05]} Nge7 {[%emt 0:01:30]} 8. a4 {[%emt 0:00:19]} O-O {[%emt 0:02:18]} 9. Nc4 {[%emt 0:01:30]} f5 {[%emt 0:04:18]} 10. Qb3 {[%emt 0:05:04]} Kh8 {[%emt 0:04:13]} 11. Rd1 {[%emt 0:03:09]} Rb8 {[%emt 0:01:30]} 12. a5 {[%emt 0:10:23]} Be6 {[%emt 0:02:23]} 13. Ng5 {[%emt 0:00:42]} Bg8 {[%emt 0:00:02]} 14. Qa4 {[%emt 0:02:15]} h6 {[%emt 0:03:27]} 15. Nf3 {[%emt 0:00:12]} d5 {[%emt 0:02:15]} 16. Ne3 {[%emt 0:02:25]} d4 {[%emt 0:03:17]} 17. Nc4 {[%emt 0:02:00]} Bxc4 {[%emt 0:04:55]} 18. Qxc4 {[%emt 0:05:53]} fxe4 {[%emt 0:01:03]} 19. dxe4 {[%emt 0:00:26]} Nxa5 {[%emt 0:00:09]} 20. Qe6 {[%emt 0:01:32]} Rf6 {[%emt 0:02:03]} 21. Qh3 {[%emt 0:00:26]} Nb3 {[%emt 0:01:11]} 22. Bxh6 {[%emt 0:04:50]} Rxf3 {[%emt 0:04:00]} 23. gxf3 {[%emt 0:00:32]} Qg8 {[%emt 0:10:59]} 24. Ra3 {[%emt 0:02:47]} c4 {[%emt 0:00:16]} 25. Bg5+ {[%emt 0:00:50]} Qh7 {[%emt 0:00:04]} 26. Qxh7+ {[%emt 0:00:35]} Kxh7 {[%emt 0:00:01]} 27. Bxe7 {[%emt 0:00:16]} b5 {[%emt 0:00:28]} 28. Rxa7 {[%emt 0:00:20]} d3 {[%emt 0:00:14]} 29. Bf1 {[%emt 0:01:38]} Kh6 {[%emt 0:00:04]} 30. h4 {[%emt 0:00:49]} 1-0

[Event "58th Akiba Rubinstein D 2022"]
[Site "Polanica-Zdroj"]
[Date "2022.08.20"]
[Round "8.10"]
[White "Wilgosz, Tomasz"]
[Black "Grzebieniowski, Michal"]
[Result "*"]
[ECO "B12"]
[WhiteElo "1513"]
[BlackElo "1710"]
[Annotator "NA RC"]
[PlyCount "61"]
[EventDate "2022.08.13"]
[EventCountry "POL"]
[SourceTitle "playchess.com"]
[Source "ChessBase"]
[SourceQuality "1"]
[TimeControl "40/5400+30:1800+30"]

1. e4 {[%emt 0:00:07]} c6 {[%emt 0:00:04]} 2. d4 {[%emt 0:00:10]} d5 {[%emt 0:00:04]} 3. e5 {[%emt 0:00:14]} Bf5 {[%emt 0:00:04]} 4. c4 {[%emt 0:00:25]} e6 {[%emt 0:00:05]} 5. Nc3 {[%emt 0:00:20]} Ne7 {[%emt 0:01:30]} 6. Bd3 {[%emt 0:00:31]} Bxd3 {[%emt 0:00:15]} 7. Qxd3 {[%emt 0:00:03]} Nf5 {[%emt 0:01:48]} 8. Nf3 {[%emt 0:00:30]} Na6 {[%emt 0:01:56]} 9. a3 {[%emt 0:01:48]} Nc7 {[%emt 0:01:47]} 10. O-O {[%emt 0:02:37]} Be7 {[%emt 0:04:46]} 11. Bf4 {[%emt 0:04:04]} O-O {[%emt 0:04:29]} 12. Rac1 {[%emt 0:01:12]} Qd7 {[%emt 0:02:24]} 13. cxd5 {[%emt 0:06:01]} Nxd5 {[%emt 0:00:33]} 14. Be3 {[%emt 0:04:53]} Rfe8 {[%emt 0:16:34]} 15. Ne4 {[%emt 0:02:03]} Bf8 {[%emt 0:03:01]} 16. g4 {[%emt 0:08:55]} Nfe7 {[%emt 0:01:28]} 17. Nd6 {[%emt 0:04:39]} Reb8 {[%emt 0:00:56]} 18. Ng5 {[%emt 0:00:44]} f5 {[%emt 0:02:13]} 19. exf6 {[%emt 0:07:05]} Nxf6 {[%emt 0:00:02]} 20. Nde4 {[%emt 0:00:39]} Ned5 {[%emt 0:01:47]} 21. Rfe1 {[%emt 0:07:19]} h6 {[%emt 0:02:53]} 22. Nxf6+ {[%emt 0:03:47]} Nxf6 {[%emt 0:01:09]} 23. Ne4 {[%emt 0:00:55]} Nxg4 {[%emt 0:02:12]} 24. h3 {[%emt 0:03:04]} Ne5 {[%emt 0:00:55]} 25. Qe2 {[%emt 0:00:59]} Nf7 {[%emt 0:00:32]} 26. Qg4 {[%emt 0:02:42]} Be7 {[%emt 0:07:40]} 27. f3 {[%emt 0:08:09]} Qd5 {[%emt 0:02:27]} 28. Kf2 {[%emt 0:05:43]} Qf5 {[%emt 0:00:08]} 29. Qg3 {[%emt 0:01:58]} Rf8 {[%emt 0:01:39]} 30. Rg1 {[%emt 0:01:53]} Bg5 {[%emt 0:02:10]} 31. h4 {[%emt 0:02:45]} *

[Event "58th Akiba Rubinstein D 2022"]
[Site "Polanica-Zdroj"]
[Date "2022.08.20"]
[Round "8.11"]
[White "Klisowski, Bartosz"]
[Black "Soszka, Szymon"]
[Result "*"]
[ECO "D78"]
[WhiteElo "1595"]
[BlackElo "1355"]
[Annotator "NA RC"]
[PlyCount "75"]
[EventDate "2022.08.13"]
[EventCountry "POL"]
[SourceTitle "playchess.com"]
[Source "ChessBase"]
[SourceQuality "1"]
[TimeControl "40/5400+30:1800+30"]

1. Nf3 {[%emt 0:00:02]} d5 {[%emt 0:09:13]} 2. g3 {[%emt 0:00:10]} Nf6 {[%emt 0:00:03]} 3. Bg2 {[%emt 0:00:05]} g6 {[%emt 0:00:03]} 4. O-O {[%emt 0:00:37]} Bg7 {[%emt 0:00:03]} 5. d4 {[%emt 0:00:06]} O-O {[%emt 0:00:05]} 6. c4 {[%emt 0:00:03]} c6 {[%emt 0:00:02]} 7. Nc3 {[%emt 0:02:26]} Bf5 {[%emt 0:01:59]} 8. cxd5 {[%emt 0:05:39]} Nxd5 {[%emt 0:01:38]} 9. Nxd5 {[%emt 0:02:26]} Qxd5 {[%emt 0:00:11]} 10. Ne5 {[%emt 0:03:27]} Qe6 {[%emt 0:02:33]} 11. e4 {[%emt 0:06:26]} Bh3 {[%emt 0:04:26]} 12. Bxh3 {[%emt 0:06:55]} Qxh3 {[%emt 0:00:01]} 13. Qb3 {[%emt 0:00:13]} Nd7 {[%emt 0:01:11]} 14. Bf4 {[%emt 0:10:21]} Nxe5 {[%emt 0:01:38]} 15. dxe5 {[%emt 0:05:00]} b6 {[%emt 0:04:07]} 16. Rac1 {[%emt 0:05:19]} c5 {[%emt 0:01:07]} 17. Rfd1 {[%emt 0:01:41]} h6 {[%emt 0:00:15]} 18. Qc3 {[%emt 0:07:49]} g5 {[%emt 0:00:52]} 19. Be3 {[%emt 0:00:17]} Rfd8 {[%emt 0:00:26]} 20. Rd5 {[%emt 0:01:47]} Qe6 {[%emt 0:01:49]} 21. Rcd1 {[%emt 0:03:13]} Rxd5 {[%emt 0:00:44]} 22. Rxd5 {[%emt 0:00:01]} f5 {[%emt 0:00:40]} 23. exf6 {[%emt 0:04:03]} exf6 {[%emt 0:00:09]} 24. Qd3 {[%emt 0:02:30]} Re8 {[%emt 0:00:41]} 25. f3 {[%emt 0:01:28]} g4 {[%emt 0:00:43]} 26. fxg4 {[%emt 0:09:24]} Qxg4 {[%emt 0:00:50]} 27. Rd8 {[%emt 0:00:31]} Rxd8 {[%emt 0:01:27]} 28. Qxd8+ {[%emt 0:00:05]} Kh7 {[%emt 0:00:04]} 29. Qd5 {[%emt 0:00:54]} Kg6 {[%emt 0:00:57]} 30. b3 {[%emt 0:01:45]} h5 {[%emt 0:02:02]} 31. Bf4 {[%emt 0:02:18]} h4 {[%emt 0:03:23]} 32. Qd3 {[%emt 0:00:25]} hxg3 {[%emt 0:05:14]} 33. hxg3 {[%emt 0:00:49]} Qe6 {[%emt 0:07:37]} 34. Bb8 {[%emt 0:02:30]} Qe7 {[%emt 0:03:05]} 35. e5+ {[%emt 0:02:27]} Kg5 {[%emt 0:04:06]} 36. Qe3+ {[%emt 0:00:30]} Kf5 {[%emt 0:00:29]} 37. Qf4+ {[%emt 0:02:06]} Ke6 {[%emt 0:00:27]} 38. Qc4+ {[%emt 0:00:20]} *